fUSD/lending_fUSD_20250402
["ID","MTS","AMOUNT","RATE_DAILY","PERIOD"]
[357023496,1743585041973,-591.56,0.00052161,120]
[357023499,1743585041984,-5067.7,0.00052161,120]
[357023500,1743585041993,-874.22,0.00052326,30]
[357023502,1743585042002,-1215.49,0.00052326,120]
[357023505,1743585042011,-500.0,0.00052326,120]
[357023507,1743585042020,-1311.5,0.00052326,120]
[357023508,1743585042030,-823.75,0.00052326,120]
[357023510,1743585042040,-500.0,0.00052326,120]
[357023512,1743585042049,-500.0,0.00052326,120]
[357023514,1743585042058,-500.0,0.00052326,120]
[357023516,1743585042067,-500.0,0.00052326,120]
[357023518,1743585042077,-550.06,0.00052326,7]
[357023520,1743585042086,-603.25,0.00052326,120]
[357023522,1743585042095,-500.0,0.00052327,120]
[357023524,1743585042105,-516.75,0.00052327,120]
[357023526,1743585042115,-500.0,0.00052327,120]
[357023528,1743585042123,-600.36,0.00052327,12]
[357023530,1743585042133,-500.0,0.00052327,120]
[357023532,1743585042142,-500.0,0.00052327,120]
[357023534,1743585042151,-520.67,0.00052327,120]
[357023536,1743585042160,-500.0,0.00052327,120]
[357023538,1743585042170,-151.0,0.00052327,120]
[357023540,1743585042179,-158.557059,0.00052327,120]
[357023542,1743585042189,-154.688417,0.00052327,120]
[357023544,1743585042198,-654.077786,0.00052327,120]
[357023546,1743585042207,-158.700994,0.00052327,120]
[357023548,1743585042217,-151.0,0.00052327,120]
[357023550,1743585042226,-654.077786,0.00052327,120]
[357023552,1743585042235,-500.0,0.00052327,120]
[357023554,1743585042245,-915.54969584,0.00052349,15]
[357023556,1743585042254,-151.0,0.0005238,120]
[357023558,1743585042263,-151.0,0.0005238,120]
[357023560,1743585042271,-154.708911,0.0005238,120]
[357023562,1743585042280,-151.0,0.0005238,120]
[357023564,1743585042289,-151.0,0.0005238,120]
[357023566,1743585042298,-151.0,0.0005238,120]
[357023568,1743585042307,-151.0,0.0005238,120]
[357023570,1743585042316,-151.0,0.0005238,120]
[357023572,1743585042325,-174.771499,0.0005238,120]
[357023574,1743585042336,-151.0,0.0005238,120]
[357023576,1743585042345,-152.19608605,0.000524,120]
[357023578,1743585042355,-11828.6390734,0.00052415,4]
[357023580,1743585042364,-151.0,0.00052415,120]
[357023582,1743585042373,-151.0,0.00052415,120]
[357023584,1743585042383,-151.842041,0.00052415,120]
[357023586,1743585042393,-165.978304,0.00052415,120]
[357023587,1743585042402,-153.948702,0.00052415,120]
[357023589,1743585042411,-252.055946,0.00052415,120]
[357023592,1743585042423,-151.0,0.00052415,120]
[357023594,1743585042432,-151.0,0.00052415,120]
[357023596,1743585042441,-154.272834,0.00052415,120]
[357023598,1743585042451,-151.0,0.00052415,120]
[357023599,1743585042462,-151.0,0.00052415,120]
[357023601,1743585042472,-152.789991,0.00052425,120]
[357023603,1743585042481,-159.594156,0.00052425,120]
[357023605,1743585042490,-152.720344,0.00052425,120]
[357023607,1743585042502,-151.0,0.00052425,120]
[357023609,1743585042511,-500.0,0.00052435,30]
[357023611,1743585042521,-591.56,0.00052435,120]
[357023614,1743585042530,-5067.7,0.00052435,120]
[357023615,1743585042540,-500.0,0.00052473,10]
[357023617,1743585042550,-500.31948744,0.00052473,5]
[357023619,1743585042559,-151.0,0.0005248,30]
[357023621,1743585042567,-151.0,0.0005248,120]
[357023623,1743585042576,-151.0,0.0005248,120]
[357023625,1743585042585,-151.0,0.0005248,120]
[357023627,1743585042595,-151.0,0.0005248,120]
[357023629,1743585042604,-151.0,0.0005248,120]
[357023631,1743585042614,-151.0,0.0005248,120]
[357023633,1743585042623,-151.0,0.0005248,120]
[357023635,1743585042632,-153.393368,0.0005248,120]
[357023637,1743585042641,-151.0,0.0005248,120]
[357023639,1743585042651,-151.0,0.0005248,120]
[357023641,1743585042660,-154.155269,0.0005248,120]
[357023643,1743585042669,-154.573143,0.0005248,120]
[357023645,1743585042678,-151.0,0.0005248,120]
[357023647,1743585042688,-151.0,0.0005248,120]
[357023649,1743585042697,-151.0,0.0005248,120]
[357023651,1743585042706,-151.0,0.0005248,120]
[357023653,1743585042715,-500.0,0.0005248,120]
[357023655,1743585042724,-151.0,0.0005248,120]
[357023657,1743585042733,-654.077786,0.0005248,120]
[357023659,1743585042742,-654.077786,0.0005248,120]
[357023662,1743585042753,-151.0,0.0005248,120]
[357023664,1743585042762,-500.0,0.00052489,120]
[357023666,1743585042771,-198.376947,0.0005249,120]
[357023668,1743585042780,-238.173031,0.0005249,120]
[357023670,1743585042790,-151.0,0.0005249,120]
[357023672,1743585042806,-153.177501,0.0005249,120]
[357023674,1743585042827,-151.0,0.0005249,120]
[357023676,1743585042847,-151.0,0.0005249,30]
[357023679,1743585042857,-267.87206048,0.0005249,30]
[357023681,1743585042866,-159.063716,0.0005249,120]
[357023683,1743585042876,-158.667319,0.0005249,120]
[357023686,1743585042886,-166.510882,0.0005249,120]
[357023688,1743585042895,-151.0,0.0005249,120]
[357023690,1743585042903,-151.0,0.0005249,120]
[357023692,1743585042912,-154.518887,0.0005249,120]
[357023694,1743585042922,-273.093283,0.0005249,120]
[357023696,1743585042931,-141943.668881,0.0005249,4]
[357023698,1743585042940,-53247.4634767,0.0005249,4]
[357023700,1743585042949,-151.0,0.0005249,120]
[357023702,1743585042959,-151.0,0.0005249,120]
[357023704,1743585042968,-151.0,0.0005249,120]
[357023706,1743585042978,-151.0,0.0005249,120]
[357023708,1743585042987,-500.0,0.00052499,120]
[357023710,1743585042996,-250000.0,0.000525,120]
[357023712,1743585043006,-151.0,0.000525,120]
[357023714,1743585043015,-180.58917833,0.000525,30]
[357023716,1743585043025,-16785.80664128,0.000525,30]
[357023731,1743585043034,-660.61790668,0.000525,30]
[357023733,1743585043144,-151.0,0.000525,120]
[357023735,1743585043153,-151.0,0.000525,120]
[357023737,1743585043162,-151.0,0.000525,120]
[357023739,1743585043171,-151.0,0.000525,120]
[357023741,1743585043180,-276.01309355,0.000525,120]
[357023743,1743585043189,-151.0,0.000525,120]
[357023745,1743585043199,-151.0,0.000525,120]
[357023747,1743585043208,-151.0,0.000525,120]
[357023749,1743585043217,-654.077786,0.000525,120]
[357023751,1743585043226,-151.0,0.000525,120]
[357023753,1743585043236,-654.077786,0.000525,120]
[357023755,1743585043245,-156.960972,0.000525,120]
[357023757,1743585043254,-151.0,0.000525,120]
[357023759,1743585043263,-151.0,0.000525,120]
[357023761,1743585043272,-8874.57724612,0.0005259,4]
[357023763,1743585043281,-874.22,0.000526,30]
[357023765,1743585043290,-1215.49,0.000526,120]
[357023767,1743585043299,-500.0,0.000526,120]
[357023769,1743585043309,-1311.5,0.000526,120]
[357023771,1743585043318,-823.75,0.000526,120]
[357023773,1743585043327,-500.0,0.000526,120]
[357023775,1743585043336,-500.0,0.000526,120]
[357023777,1743585043346,-500.0,0.000526,120]
[357023779,1743585043356,-500.0,0.000526,120]
[357023781,1743585043366,-550.06,0.000526,7]
[357023783,1743585043375,-603.25,0.000526,120]
[357023785,1743585043387,-500.0,0.00052601,120]
[357023787,1743585043399,-516.75,0.00052601,120]
[357023789,1743585043408,-500.0,0.00052601,120]
[357023791,1743585043419,-600.36,0.00052601,12]
[357023793,1743585043428,-500.0,0.00052601,120]
[357023795,1743585043437,-500.0,0.00052601,120]
[357023797,1743585043447,-520.67,0.00052601,120]
[357023799,1743585043455,-500.0,0.00052601,120]
[357023801,1743585043467,-500.0,0.00052601,120]
[357023803,1743585043478,-500.0,0.00052709,30]
[357023805,1743585043488,-591.56,0.00052709,120]
[357023807,1743585043497,-5067.7,0.00052709,120]
[357023809,1743585043507,-152.19608605,0.00052713,120]
[357023811,1743585043518,-151.0,0.0005279,120]
[357023813,1743585043528,-11828.6390734,0.00052864,4]
[357023815,1743585043538,-8874.57724612,0.00052864,4]
[357023817,1743585043548,-874.22,0.00052874,30]
[357023819,1743585043558,-1215.49,0.00052874,120]
[357023821,1743585043568,-500.0,0.00052874,120]
[357023823,1743585043578,-1311.5,0.00052874,120]
[357023825,1743585043588,-823.75,0.00052874,120]
[357023827,1743585043597,-500.0,0.00052874,120]
[357023829,1743585043607,-500.0,0.00052874,120]
[357023831,1743585043616,-500.0,0.00052874,120]
[357023833,1743585043626,-500.0,0.00052874,120]
[357023835,1743585043635,-550.06,0.00052874,7]
[357023837,1743585043644,-603.25,0.00052874,120]
[357023839,1743585043654,-500.0,0.00052875,120]
[357023841,1743585043663,-516.75,0.00052875,120]
[357023843,1743585043673,-500.0,0.00052875,120]
[357023845,1743585043683,-600.36,0.00052875,12]
[357023847,1743585043692,-500.0,0.00052875,120]
[357023849,1743585043701,-500.0,0.00052875,120]
[357023852,1743585043711,-520.67,0.00052875,120]
[357023855,1743585043720,-500.0,0.00052875,120]
[357023858,1743585043729,-500.0,0.00052875,120]
[357023861,1743585043738,-157.652718,0.00052876,120]
[357023864,1743585043749,-160.72048308,0.0005289,50]
[357023867,1743585043758,-1600.0,0.000529,19]
[357023870,1743585043768,-500.0,0.00052983,30]
[357023873,1743585043777,-591.56,0.00052983,120]
[357023876,1743585043786,-5067.7,0.00052983,120]
[357023879,1743585043795,-23657.2781468,0.0005299,4]
[357023882,1743585043804,-26623.7317384,0.0005299,4]
[357023884,1743585043813,-151.0,0.0005299,120]
[357023885,1743585043822,-151.0,0.0005299,120]
[357023886,1743585043831,-151.0,0.00052999,120]
[357023887,1743585043841,-52155.41768769,0.00052999,59]
[357023888,1743585043850,-50000.0,0.00053,53]
[357023889,1743585043859,-151.0,0.00053,120]
[357023890,1743585043868,-151.0,0.00053,120]
[357023891,1743585043878,-176.116674,0.00053,120]
[357023892,1743585043887,-151.0,0.00053,120]
[357023893,1743585043896,-151.0,0.00053,120]
[357023894,1743585043911,-151.0,0.00053,120]
[357023895,1743585043923,-654.077786,0.00053,120]
[357023896,1743585043932,-151.0,0.00053,120]
[357023897,1743585043941,-654.077786,0.00053,120]
[357023898,1743585043951,-152.19608605,0.00053025,120]
[357023899,1743585043960,-11828.6390734,0.00053138,4]
[357023900,1743585043970,-8874.57724612,0.00053138,4]
[357023901,1743585043979,-151.0,0.00053138,120]
[357023902,1743585043989,-151.0,0.00053138,120]
[357023903,1743585043998,-874.22,0.00053148,30]
[357023904,1743585044007,-1215.49,0.00053148,120]
[357023905,1743585044016,-500.0,0.00053148,120]
[357023906,1743585044026,-1311.5,0.00053148,120]
[357023908,1743585044035,-823.75,0.00053148,120]
[357023910,1743585044045,-296.58,0.00053148,120]
[357023911,1743585044054,-500.0,0.00053148,120]
[357023912,1743585044064,-500.0,0.00053148,120]
[357023913,1743585044073,-500.0,0.00053148,120]
[357023914,1743585044083,-550.06,0.00053148,7]
[357023915,1743585044092,-603.25,0.00053148,120]
[357023916,1743585044103,-500.0,0.00053149,120]
[357023917,1743585044113,-516.75,0.00053149,120]
[357023918,1743585044122,-500.0,0.00053149,120]
[357023919,1743585044131,-600.36,0.00053149,12]
[357023920,1743585044141,-500.0,0.00053149,120]
[357023921,1743585044157,-500.0,0.00053149,120]
[357023922,1743585044166,-520.67,0.00053149,120]
[357023924,1743585044175,-500.0,0.00053149,120]
[357023926,1743585044185,-500.0,0.00053149,120]
[357023928,1743585044194,-152.63,0.000532,51]
[357023930,1743585044203,-152.63,0.000532,51]
[357023932,1743585044212,-353.71731405,0.00053233,15]
[357023934,1743585044222,-500.0,0.00053256,30]
[357023936,1743585044231,-591.56,0.00053256,120]
[357023938,1743585044241,-5067.7,0.00053256,120]
[357023939,1743585044250,-915.54969584,0.00053293,15]
[357023941,1743585044259,-152.19608605,0.00053338,120]
[357023943,1743585044269,-151.0,0.00053404,120]
[357023946,1743585044279,-8874.57724612,0.00053412,4]
[357023947,1743585044288,-11828.6390734,0.00053413,4]
[357023949,1743585044297,-874.22,0.00053422,30]
[357023951,1743585044307,-1215.49,0.00053422,120]
[357023953,1743585044316,-470.2544026,0.00053422,120]
[357023955,1743585044326,-1311.5,0.00053422,120]
[357023957,1743585044336,-823.75,0.00053422,120]
[357023960,1743585044345,-500.0,0.00053422,120]
[357023962,1743585044360,-500.0,0.00053422,120]
[357023964,1743585044373,-500.0,0.00053422,120]
[357023966,1743585044386,-550.06,0.00053422,7]
[357023969,1743585044397,-603.25,0.00053422,120]
[357023971,1743585044408,-500.0,0.00053423,120]
[357023973,1743585044419,-516.75,0.00053423,120]
[357023975,1743585044430,-500.0,0.00053423,120]
[357023977,1743585044442,-600.36,0.00053423,12]
[357023980,1743585044454,-500.0,0.00053423,120]
[357023982,1743585044467,-500.0,0.00053423,120]
[357023984,1743585044480,-520.67,0.00053423,120]
[357023986,1743585044492,-500.0,0.00053423,120]
[357023989,1743585044504,-500.0,0.00053423,120]
[357023991,1743585044515,-500.0,0.00053529,120]
[357023993,1743585044527,-500.0,0.0005353,30]
[357023995,1743585044539,-591.56,0.0005353,120]
[357023998,1743585044551,-5067.7,0.0005353,120]
[357024000,1743585044561,-152.19608605,0.0005365,120]
[357024002,1743585044571,-150.0,0.0005368,2]
[357024004,1743585044581,-8874.57724612,0.00053687,4]
[357024006,1743585044591,-874.22,0.00053696,30]
[357024008,1743585044601,-1215.49,0.00053696,120]
[357024010,1743585044613,-1311.5,0.00053696,120]
[357024012,1743585044626,-823.75,0.00053696,120]
[357024015,1743585044642,-500.0,0.00053696,120]
[357024017,1743585044654,-500.0,0.00053696,120]
[357024019,1743585044665,-500.0,0.00053696,120]
[357024021,1743585044676,-550.06,0.00053696,7]
[357024023,1743585044688,-603.25,0.00053696,120]
[357024025,1743585044700,-500.0,0.00053697,120]
[357024028,1743585044711,-516.75,0.00053697,120]
[357024030,1743585044724,-487.67311487,0.00053697,120]
[357024032,1743585044736,-600.36,0.00053697,12]
[357024034,1743585044747,-500.0,0.00053697,120]
[357024037,1743585044758,-500.0,0.00053697,120]
[357024039,1743585044774,-520.67,0.00053697,120]
[357024041,1743585044784,-500.0,0.00053697,120]
[357024043,1743585044796,-500.0,0.00053697,120]
[357024046,1743585044807,-266.56846589,0.00053794,59]
[357024048,1743585044817,-151.0,0.00053794,120]
[357024050,1743585044828,-202.686,0.00053794,120]
[357024052,1743585044839,-11828.6390734,0.00053794,4]
[357024054,1743585044850,-343.27677376,0.00053804,30]
[357024057,1743585044861,-591.56,0.00053804,120]
[357024059,1743585044872,-5067.7,0.00053804,120]
[357024061,1743585044883,-8874.57724612,0.00053853,4]
[357024063,1743585044895,-999.0,0.00053863,120]
[357024065,1743585044907,-999.0,0.00053863,120]
[357024067,1743585044918,-999.0,0.00053863,120]
[357024070,1743585044928,-999.0,0.00053863,120]
[357024072,1743585044939,-999.0,0.00053863,120]
[357024074,1743585044949,-999.0,0.00053863,120]
[357024076,1743585044959,-999.0,0.00053863,120]
[357024078,1743585044969,-999.0,0.00053863,120]
[357024080,1743585044978,-999.0,0.00053863,120]
[357024082,1743585044989,-999.0,0.00053863,120]
[357024084,1743585044998,-999.0,0.00053863,120]
[357024086,1743585045009,-999.0,0.00053863,120]
[357024089,1743585045022,-999.0,0.00053863,120]
[357024091,1743585045034,-999.0,0.00053863,120]
[357024093,1743585045045,-999.0,0.00053863,120]
[357024095,1743585045054,-999.0,0.00053863,120]
[357024097,1743585045063,-999.0,0.00053863,120]
[357024099,1743585045073,-999.0,0.00053863,120]
[357024101,1743585045083,-999.0,0.00053863,120]
[357024103,1743585045093,-999.0,0.00053863,120]
[357024105,1743585045104,-999.0,0.00053863,120]
[357024108,1743585045115,-393.15824239,0.00053863,120]
[357024110,1743585045127,-11828.6390734,0.0005389,4]
[357024112,1743585045139,-8874.57724612,0.0005389,4]
[357024114,1743585045149,-3300.0,0.000539,19]
[357024116,1743585045159,-151.0,0.00053951,120]
[357024118,1743585045169,-152.19608605,0.00053963,120]
[357024120,1743585045179,-874.22,0.0005397,30]
[357024122,1743585045190,-1215.49,0.0005397,120]
[357024124,1743585045200,-1311.5,0.0005397,120]
[357024126,1743585045211,-823.75,0.0005397,120]
[357024129,1743585045221,-500.0,0.0005397,120]
[357024131,1743585045232,-500.0,0.0005397,120]
[357024133,1743585045242,-500.0,0.0005397,120]
[357024135,1743585045252,-550.06,0.0005397,7]
[357024137,1743585045263,-603.25,0.0005397,120]
[357024139,1743585045273,-500.0,0.00053971,120]
[357024141,1743585045283,-516.75,0.00053971,120]
[357024143,1743585045293,-600.36,0.00053971,12]
[357024145,1743585045304,-500.0,0.00053971,120]
[357024147,1743585045314,-500.0,0.00053971,120]
[357024150,1743585045325,-520.67,0.00053971,120]
[357024152,1743585045335,-628.32194871,0.00053971,120]
[357024154,1743585045346,-500.0,0.00053971,120]
[357024156,1743585045357,-155.382426,0.00053972,120]
[357024158,1743585045367,-151.0,0.00053972,120]
[357024160,1743585045379,-654.077786,0.00053972,120]
[357024163,1743585045395,-151.0,0.00053972,120]
[357024165,1743585045406,-654.077786,0.00053972,120]
[357024167,1743585045417,-19540.05795647,0.0005398,120]
[357024169,1743585045427,-11828.6390734,0.0005399,4]
[357024171,1743585045438,-53247.4634767,0.0005399,4]
[357024173,1743585045449,-97620.3497073,0.0005399,4]
[357024175,1743585045460,-151.0,0.0005399,120]
[357024177,1743585045470,-2000.0,0.0005399,120]
[357024179,1743585045481,-2082.842014,0.0005399,120]
[357024181,1743585045492,-500.0,0.00053999,120]
[357024184,1743585045502,-50000.0,0.00054,54]
[357024186,1743585045513,-500.19043778,0.00054,7]
[357024188,1743585045526,-1635.53,0.00054,120]
[357024190,1743585045536,-300000.0,0.00054,30]
[357024192,1743585045546,-151.0,0.00054,120]
[357024194,1743585045556,-151.0,0.00054,120]
[357024196,1743585045567,-151.0,0.00054,120]
[357024199,1743585045579,-151.0,0.00054,120]
[357024201,1743585045590,-151.0,0.00054,120]
[357024203,1743585045602,-151.0,0.00054,120]
[357024205,1743585045613,-151.0,0.00054,120]
[357024207,1743585045624,-151.0,0.00054,120]
[357024209,1743585045634,-654.077786,0.00054,120]
[357024211,1743585045644,-654.077786,0.00054,120]
[357024213,1743585045654,-151.0,0.00054,120]
[357024215,1743585045663,-654.077786,0.00054,120]
[357024217,1743585045673,-151.0,0.00054,120]
[357024219,1743585045682,-654.077786,0.00054,120]
[357024221,1743585045692,-591.56,0.00054078,120]
[357024223,1743585045702,-5067.7,0.00054078,120]
[357024225,1743585045711,-214.07,0.00054104,2]
[357024227,1743585045720,-50000.0,0.000542,120]
[357024229,1743585045730,-915.54969584,0.00054237,15]
[357024231,1743585045739,-874.22,0.00054244,30]
[357024233,1743585045748,-1215.49,0.00054244,120]
[357024235,1743585045757,-1311.5,0.00054244,120]
[357024253,1743585045902,-823.75,0.00054244,120]
[357024256,1743585045916,-500.0,0.00054244,120]
[357024258,1743585045925,-500.0,0.00054244,120]
[357024261,1743585045935,-500.0,0.00054244,120]
[357024263,1743585045945,-550.06,0.00054244,7]
[357024265,1743585045955,-603.25,0.00054244,120]
[357024267,1743585045963,-500.0,0.00054245,120]
[357024269,1743585045972,-516.75,0.00054245,120]
[357024271,1743585045982,-600.36,0.00054245,12]
[357024273,1743585045991,-500.0,0.00054245,120]
[357024275,1743585046001,-500.0,0.00054245,120]
[357024277,1743585046011,-520.67,0.00054245,120]
[357024279,1743585046021,-500.0,0.00054245,120]
[357024281,1743585046031,-500.0,0.00054245,120]
[357024283,1743585046040,-1069.74303001,0.00054246,120]
[357024285,1743585046050,-150.0,0.00054247,2]
[357024287,1743585046059,-152.19608605,0.00054275,120]
[357024289,1743585046069,-353.71731405,0.00054344,15]
[357024291,1743585046078,-591.56,0.00054352,120]
[357024293,1743585046088,-5067.7,0.00054352,120]
[357024295,1743585046097,-874.22,0.00054518,30]
[357024297,1743585046108,-1215.49,0.00054518,120]
[357024299,1743585046117,-1311.5,0.00054518,120]
[357024301,1743585046126,-823.75,0.00054518,120]
[357024303,1743585046135,-500.0,0.00054518,120]
[357024305,1743585046144,-500.0,0.00054518,120]
[357024306,1743585046154,-500.0,0.00054518,120]
[357024308,1743585046163,-550.06,0.00054518,7]
[357024310,1743585046172,-603.25,0.00054518,120]
[357024312,1743585046181,-275.66287816,0.00054519,120]
[357024314,1743585046191,-516.75,0.00054519,120]
[357024316,1743585046200,-600.36,0.00054519,12]
[357024318,1743585046209,-500.0,0.00054519,120]
[357024320,1743585046218,-500.0,0.00054519,120]
[357024322,1743585046227,-520.67,0.00054519,120]
[357024324,1743585046237,-500.0,0.00054519,120]
[357024326,1743585046246,-152.19608605,0.00054588,120]
[357024327,1743585046255,-591.56,0.00054626,120]
[357024328,1743585046264,-5067.7,0.00054626,120]
[357024329,1743585046273,-480.05337695,0.0005478,120]
[357024330,1743585046282,-874.22,0.00054792,30]
[357024331,1743585046291,-1215.49,0.00054792,120]
[357024332,1743585046301,-1311.5,0.00054792,120]
[357024333,1743585046310,-823.75,0.00054792,120]
[357024334,1743585046319,-166.75,0.00054792,120]
[357024335,1743585046328,-500.0,0.00054792,120]
[357024336,1743585046337,-500.0,0.00054792,120]
[357024337,1743585046346,-550.06,0.00054792,7]
[357024339,1743585046356,-603.25,0.00054792,120]
[357024341,1743585046365,-516.75,0.00054793,120]
[357024343,1743585046375,-600.36,0.00054793,12]
[357024345,1743585046388,-500.0,0.00054793,120]
[357024347,1743585046398,-500.0,0.00054793,120]
[357024349,1743585046407,-520.67,0.00054793,120]
[357024351,1743585046416,-500.0,0.00054793,120]
[357024353,1743585046426,-1000.0,0.00054794,120]
[357024355,1743585046435,-1000.0,0.00054794,120]
[357024357,1743585046444,-1000.0,0.00054794,120]
[357024359,1743585046454,-1000.0,0.00054794,120]
[357024361,1743585046463,-1000.0,0.00054794,120]
[357024363,1743585046472,-1000.0,0.00054794,120]
[357024365,1743585046481,-1000.0,0.00054794,120]
[357024367,1743585046490,-1000.0,0.00054794,120]
[357024369,1743585046499,-1000.0,0.00054794,120]
[357024371,1743585046508,-1000.0,0.00054794,120]
[357024373,1743585046518,-1000.0,0.00054794,120]
[357024375,1743585046527,-1000.0,0.00054794,120]
[357024377,1743585046535,-865.29157429,0.00054794,120]
[357024379,1743585046547,-612.96560233,0.00054794,120]
[357024381,1743585046556,-547.92809277,0.00054794,120]
[357024383,1743585046565,-1017.45254965,0.00054794,120]
[357024385,1743585046574,-553.88,0.00054794,120]
[357024387,1743585046583,-553.88,0.00054794,120]
[357024389,1743585046592,-553.88,0.00054794,120]
[357024391,1743585046602,-553.88,0.00054794,120]
[357024393,1743585046611,-553.88,0.00054794,120]
[357024395,1743585046620,-553.88,0.00054794,120]
[357024397,1743585046629,-553.88,0.00054794,120]
[357024399,1743585046638,-553.88,0.00054794,120]
[357024401,1743585046648,-553.88,0.00054794,120]
[357024403,1743585046656,-553.88,0.00054794,120]
[357024405,1743585046665,-553.88,0.00054794,120]
[357024407,1743585046674,-553.88,0.00054794,120]
[357024409,1743585046683,-553.88,0.00054794,120]
[357024410,1743585046692,-553.88,0.00054794,120]
[357024413,1743585046701,-553.88,0.00054794,120]
[357024415,1743585046711,-553.88,0.00054794,120]
[357024417,1743585046720,-1000.0,0.00054794,120]
[357024419,1743585046730,-1000.0,0.00054794,120]
[357024421,1743585046739,-1000.0,0.00054794,120]
[357024422,1743585046748,-1000.0,0.00054794,120]
[357024424,1743585046757,-174.41614554,0.00054794,120]
[357024426,1743585046767,-500.0,0.00054794,120]
[357024428,1743585046776,-500.0,0.00054794,120]
[357024430,1743585046786,-500.0,0.00054794,120]
[357024432,1743585046795,-500.0,0.00054794,120]
[357024434,1743585046806,-500.0,0.00054794,120]
[357024436,1743585046815,-500.0,0.00054794,120]
[357024438,1743585046825,-500.0,0.00054794,120]
[357024440,1743585046835,-500.0,0.00054794,120]
[357024443,1743585046845,-500.0,0.00054794,120]
[357024445,1743585046855,-151.0,0.00054795,120]
[357024446,1743585046864,-151.0,0.00054795,120]
[357024448,1743585046874,-151.0,0.00054795,120]
[357024450,1743585046883,-151.0,0.00054795,120]
[357024452,1743585046892,-151.0,0.00054795,120]
[357024454,1743585046901,-151.0,0.00054795,120]
[357024456,1743585046911,-151.0,0.00054795,120]
[357024458,1743585046920,-151.0,0.00054795,120]
[357024460,1743585046929,-151.0,0.00054795,120]
[357024462,1743585046938,-151.0,0.00054795,120]
[357024464,1743585046947,-284.549055,0.00054795,120]
[357024466,1743585046956,-5000.0,0.000548,20]
[357024468,1743585046966,-151.0,0.000548,120]
[357024470,1743585046975,-654.077786,0.000548,120]
[357024472,1743585046985,-151.0,0.000548,120]
[357024474,1743585046994,-654.077786,0.000548,120]
[357024476,1743585047004,-151.0,0.000548,120]
[357024478,1743585047013,-16273.87,0.00054874,8]
[357024480,1743585047023,-16209.27,0.00054874,8]
[357024482,1743585047032,-1262.87,0.00054874,8]
[357024484,1743585047041,-16150.2,0.00054874,8]
[357024486,1743585047050,-11665.35,0.00054874,8]
[357024488,1743585047059,-4680.36,0.00054874,8]
[357024490,1743585047068,-15101.0,0.00054874,8]
[357024492,1743585047077,-500.0,0.00054899,120]
[357024494,1743585047086,-591.56,0.000549,120]
[357024496,1743585047095,-5067.7,0.000549,120]
[357024498,1743585047106,-151.0,0.000549,120]
[357024500,1743585047115,-6700.0,0.000549,20]
[357024502,1743585047124,-151.0,0.000549,120]
[357024504,1743585047134,-1426.67368139,0.0005499,120]
[357024506,1743585047145,-1087.28689429,0.0005499,120]
[357024508,1743585047154,-175.0,0.00054999,120]